bitfinex/quotes_ETHUSD_20241129
["timestamp","ask_amount","ask_price","bid_price","bid_amount"]
[1732840626333,0.26107048,3575.4,3575.3,2.79696]
[1732840626543,0.26107029,3575.4,3575.3,0.06281203]
[1732840626685,0.7993,3575.7,3575.1,4.3062785]
[1732840626686,2.79674,3575.6,3575.1,4.3062785]
[1732840626887,0.26119949,3575.5,3575.2,0.06281203]
[1732840627086,0.26119949,3575.4,3575.2,0.06281203]
[1732840627325,1.21714651,3575.7,3575.3,0.43690505]
[1732840627530,0.26113589,3575.6,3575.1,3.60386]
[1732840627728,0.26113589,3575.5,3575.2,0.06281203]
[1732840627933,0.7993,3575.7,3575.2,0.06281203]
[1732840628094,0.26116448,3575.6,3575.2,2.85982203]
[1732840628433,0.7993,3575.7,3575.2,3.50620523]
[1732840628618,0.26113092,3575.6,3575.2,3.50620523]
[1732840628791,0.7993,3575.7,3575.2,3.50620523]
[1732840629130,0.26113702,3575.6,3575.2,3.50620523]
[1732840629293,0.7993,3575.7,3575.2,3.50620523]
[1732840629487,0.26110737,3575.6,3575.4,2.79685]
[1732840629689,3.01585496,3575.9,3575.5,2.79681]
[1732840629948,0.26111857,3575.8,3575.6,2.85949203]
[1732840630111,2.59804549,3575.9,3575.6,2.85949203]
[1732840630425,0.26112118,3575.8,3575.6,0.06281203]
[1732840630629,3.05770265,3575.7,3575.6,0.06281203]
[1732840630951,2.79705,3575.2,3574.4,0.816]
[1732840631165,2.59804549,3575.2,3574.7,2.79736]
[1732840631324,2.59804549,3575.6,3575.0,2.79718]
[1732840631653,2.59804549,3575.6,3575.1,0.05995694]
[1732840631654,0.26103377,3575.5,3575.1,0.05995694]
[1732840631959,2.59804549,3575.6,3575.1,0.05995694]
[1732840631960,0.26103377,3575.4,3575.2,2.79698]
[1732840632128,2.59804549,3575.6,3575.2,3.08267369]
[1732840632453,0.26101965,3575.5,3575.3,0.05995694]
[1732840632654,0.26101965,3575.4,3575.3,2.85691694]
[1732840632858,0.26101965,3575.4,3575.3,0.05995694]
[1732840633020,2.59804549,3575.6,3575.3,0.05995694]
[1732840633221,0.26105476,3575.5,3575.3,2.85690694]
[1732840633563,6.21108549,3576.0,3575.3,3.530845]
[1732840633713,0.67872858,3575.9,3575.4,2.79687]
[1732840633913,0.67872858,3575.8,3575.5,2.7968]
[1732840634158,3.41464549,3576.0,3575.6,2.85668694]
[1732840634159,0.26104945,3575.7,3575.6,2.85668694]
[1732840635346,0.26104945,3575.7,3575.6,0.05995694]
[1732840635656,0.26104945,3575.7,3575.5,2.79677]
[1732840635859,2.59804549,3576.0,3575.6,2.85668694]
[1732840636061,0.26099522,3575.9,3575.6,2.85668694]
[1732840636269,0.26099522,3575.8,3575.6,0.05995694]
[1732840636422,0.26099522,3575.7,3575.6,0.05995694]
[1732840636622,0.26099522,3575.7,3575.4,2.79682]
[1732840636848,2.59804549,3576.0,3575.7,2.79664]
[1732840637153,0.26096269,3575.9,3575.8,0.05995694]
[1732840637355,0.26096269,3575.9,3575.7,2.79664]
[1732840637588,0.26096269,3575.8,3575.3,2.79695]
[1732840637789,0.26097181,3575.7,3575.5,2.79674]
[1732840638098,2.59804549,3576.0,3575.5,3.34976667]
[1732840638269,0.26097638,3575.9,3575.1,0.7998]
[1732840638475,1.60303794,3576.6,3575.7,2.79665]
[1732840638476,0.41753579,3576.2,3575.7,2.79665]
[1732840638789,1.16784032,3576.6,3576.5,2.79602]
[1732840639159,1.16784032,3576.6,3576.4,3.5496]
[1732840639360,1.16784032,3576.6,3576.1,2.79627]
[1732840639565,3.76588581,3576.6,3576.2,0.360097]
[1732840639812,0.260791,3576.5,3576.2,0.360097]
[1732840639967,0.260791,3576.5,3576.4,2.7961]
[1732840640164,1.16784032,3576.6,3576.5,2.79602]
[1732840640364,1.4285192,3576.6,3576.5,2.79602]
[1732840640566,1.16784032,3576.6,3576.5,3.3912417]
[1732840640967,1.16784032,3576.6,3576.5,4.1821417]
[1732840643961,2.59804549,3577.4,3576.9,2.79569]
[1732840644404,2.59804549,3577.4,3577.0,2.85558694]
[1732840644607,2.59804549,3577.4,3577.1,2.79555]
[1732840644808,2.59804549,3577.4,3577.2,0.28555069]
[1732840645048,2.59804549,3577.8,3577.2,0.28555069]
[1732840645248,2.79511,3577.7,3577.3,0.05995694]
[1732840647323,5.39336549,3577.4,3577.3,0.05995694]
[1732840647652,0.55,3577.2,3576.3,2.79618]
[1732840647968,2.79585,3576.8,3576.4,0.6760497]
[1732840648528,0.8033,3576.9,3576.4,0.6760497]
[1732840648742,5.39371549,3577.0,3576.4,3.4721497]
[1732840648950,2.59804549,3577.0,3576.5,0.71042566]
[1732840649161,2.59804549,3577.0,3576.2,0.8079]
[1732840649624,2.79594,3576.7,3576.2,0.8079]
[1732840649964,1.3083,3577.2,3575.9,0.7931]
[1732840649965,6.16531549,3576.5,3575.9,0.7931]
[1732840650127,0.55,3576.7,3576.2,2.79623]
[1732840650535,2.79595,3576.6,3575.9,0.7931]
[1732840650725,2.796,3576.6,3576.0,2.79637]
[1732840651012,3.6071,3577.2,3576.1,0.02795967]
[1732840651212,2.59804549,3577.3,3576.3,3.59262]
[1732840651459,2.79576,3576.9,3576.3,3.59262]
[1732840652151,2.79576,3576.9,3576.4,2.79609]
[1732840652354,2.79576,3576.9,3576.5,0.638871]
[1732840652562,2.79557,3577.1,3576.5,0.638871]
[1732840652924,2.79568,3577.0,3576.5,0.638871]
[1732840653349,3.34553,3577.2,3576.5,0.638871]
[1732840653565,3.34553,3577.2,3576.6,2.79588]
[1732840653725,3.34553,3577.2,3576.7,0.6230851]
[1732840654047,2.79553,3577.2,3576.7,0.6230851]
[1732840654246,2.79561,3577.1,3576.4,2.79608]
[1732840654620,2.59804549,3577.3,3576.7,2.79587]
[1732840655367,2.79548,3577.2,3576.7,2.79587]
[1732840655669,2.59804549,3577.3,3576.7,2.79587]
[1732840655849,5.39346549,3577.3,3576.7,2.79587]
[1732840656035,5.39346549,3577.3,3576.7,3.355057]
[1732840656423,5.39346549,3577.3,3576.8,2.79579]
[1732840656767,3.60681,3577.6,3577.0,2.79561]
[1732840657259,2.79525,3577.5,3576.9,0.8049]
[1732840657428,3.60681,3577.6,3576.9,0.8049]
[1732840657639,3.60681,3577.6,3577.0,0.4159877]
[1732840657835,2.79526,3577.5,3577.0,0.4159877]
[1732840658924,2.7954,3577.4,3577.1,0.05995694]
[1732840659157,3.60681,3577.6,3577.1,0.05995694]
[1732840659367,2.79529,3577.5,3576.9,0.8049]
[1732840659531,2.79538,3577.4,3577.0,0.639647]
[1732840659737,2.79538,3577.4,3577.0,0.69960394]
[1732840660167,2.79556,3577.1,3577.0,0.05995694]
[1732840660339,2.79556,3577.1,3576.5,3.59622]
[1732840660540,5.39350549,3577.3,3576.6,2.85589694]
[1732840660853,5.39350549,3577.3,3576.7,2.79585]
[1732840661050,2.59804549,3577.3,3576.8,2.79579]
[1732840661283,2.59804549,3577.3,3576.9,0.28557469]
[1732840661573,2.59804549,3577.3,3576.9,0.34553163]
[1732840662385,2.59804549,3577.3,3576.9,3.14123163]
[1732840664276,5.39320549,3577.7,3576.9,3.14123163]
[1732840664477,3.05564165,3577.6,3577.1,0.782]
[1732840664653,0.26047165,3577.5,3577.1,0.782]
[1732840664856,2.79517,3577.6,3577.1,0.782]
[1732840665057,0.2604787,3577.5,3577.2,0.05995694]
[1732840665260,2.79517,3577.6,3577.2,0.05995694]
[1732840665457,0.26057527,3577.5,3577.2,0.05995694]
[1732840665693,2.79517,3577.6,3577.2,0.05995694]
[1732840665866,0.26056884,3577.5,3577.2,0.05995694]
[1732840666060,2.79524,3577.5,3577.2,0.05995694]
[1732840666261,0.26057099,3577.4,3577.2,0.05995694]
[1732840666502,2.79524,3577.5,3577.2,0.05995694]
[1732840666662,3.05603449,3577.4,3577.2,0.05995694]
[1732840666998,2.79521,3577.6,3577.3,0.05995694]
[1732840667159,3.0559263,3577.5,3576.9,3.08128469]
[1732840667361,3.0559963,3577.4,3577.0,0.05995694]
[1732840667567,0.2606763,3577.3,3577.0,0.05995694]
[1732840667862,0.26082527,3577.2,3577.0,0.05995694]
[1732840668061,2.59804549,3577.3,3577.0,0.05995694]
[1732840668371,0.26082796,3577.2,3577.1,0.05723162]
[1732840668573,0.26082796,3577.2,3576.8,3.61488]
[1732840668797,0.26082796,3577.1,3576.9,0.05723162]
[1732840668956,5.39349549,3577.3,3576.9,0.05723162]
[1732840669157,0.26100438,3577.2,3576.9,0.05723162]
[1732840669407,0.26100438,3577.1,3576.9,0.05723162]
[1732840669695,5.39349549,3577.3,3576.9,0.05723162]
[1732840669886,0.26097145,3577.2,3576.9,0.05723162]
[1732840670101,0.26097711,3577.1,3576.9,0.76813358]
[1732840670396,2.59804549,3577.3,3576.9,0.76813358]
[1732840670573,0.26102803,3577.2,3576.9,0.76813358]
[1732840670774,0.26102803,3577.1,3576.9,0.76813358]
[1732840670974,2.59804549,3577.3,3576.9,0.76813358]
[1732840671179,0.26103233,3577.2,3576.9,0.76813358]
[1732840671380,0.26103233,3577.1,3576.9,0.76813358]
[1732840671582,5.39345549,3577.3,3576.9,0.76813358]
[1732840671770,5.39345549,3577.3,3576.9,0.05723162]
[1732840671771,2.79563,3577.0,3576.9,0.05723162]
[1732840671963,3.05665989,3577.0,3576.3,0.7799]
[1732840672267,3.34583,3576.8,3576.0,0.7799]
[1732840672467,2.79599,3576.6,3576.0,3.57629]
[1732840672693,2.79599,3576.6,3576.1,2.85356162]
[1732840672885,2.79616,3576.4,3576.2,0.73389003]
[1732840673080,2.79603,3576.5,3576.1,0.05723162]
[1732840673370,2.79603,3576.5,3576.2,0.05723162]
[1732840673598,0.26094454,3576.4,3576.0,0.7799]
[1732840673872,2.79603,3576.5,3576.1,0.05723162]
[1732840674070,2.79595,3576.6,3576.1,0.05723162]
[1732840674402,3.05700793,3576.5,3576.1,0.05723162]
[1732840674702,2.79608,3576.5,3576.1,0.05723162]
[1732840675067,3.34583,3576.8,3576.1,0.05723162]
[1732840675268,3.05677707,3576.7,3576.1,3.56041722]
[1732840675471,2.79588,3576.7,3576.2,2.79625]
[1732840675803,0.55,3576.8,3576.3,2.79617]
[1732840676010,5.39380549,3576.9,3576.3,2.82412899]
[1732840676011,0.26089585,3576.7,3576.3,2.82412899]
[1732840676312,5.39375549,3576.9,3576.4,0.05723162]
[1732840676496,2.79591,3576.7,3576.4,0.05723162]
[1732840676810,3.0568587,3576.6,3576.5,0.05723162]
[1732840677111,2.79608,3576.5,3576.0,0.7799]
[1732840677267,2.79595,3576.6,3576.5,0.05723162]
[1732840677470,2.79612,3576.4,3576.0,0.7799]
[1732840677669,2.79612,3576.4,3575.8,2.79654]
[1732840677970,2.79612,3576.4,3575.9,2.79647]
[1732840678200,2.79612,3576.4,3576.0,0.69301089]
[1732840679873,2.79595,3576.6,3576.0,3.48937089]
[1732840680676,2.79551,3577.2,3576.1,0.81405993]
[1732840681015,0.26094062,3577.1,3576.9,3.58175]
[1732840681211,3.2128963,3577.4,3576.9,0.7861]
[1732840681370,0.26096639,3577.3,3576.9,0.7861]
[1732840681573,0.26096639,3577.2,3576.9,3.5818]
[1732840681792,2.79524,3577.5,3576.9,3.5818]
[1732840681793,2.79524,3577.5,3576.9,0.7861]
[1732840682107,2.79542,3577.3,3576.6,2.79593]
[1732840682408,3.05647504,3577.2,3576.7,0.559201]
[1732840682606,3.21288873,3577.5,3576.7,3.355061]
[1732840682796,2.7954,3577.3,3576.7,3.355061]
[1732840682993,0.26102121,3577.2,3576.7,3.355061]
[1732840683202,2.7954,3577.3,3576.7,3.355061]
[1732840683403,2.79569,3577.0,3576.6,0.7753]
[1732840683592,2.79569,3577.0,3576.4,2.79607]
[1732840684466,0.8103,3577.0,3576.3,0.796]
[1732840684669,0.8103,3577.0,3576.4,2.79609]
[1732840684890,2.79562,3577.1,3576.4,2.79609]
[1732840685096,0.26096072,3577.0,3576.5,0.69518997]
[1732840685297,2.79562,3577.1,3576.5,0.69518997]
[1732840685510,0.26093236,3577.0,3576.7,2.79586]
[1732840685679,2.79549,3577.2,3576.8,0.7631]
[1732840686094,0.55,3577.5,3576.8,3.55884]
[1732840686424,3.05621779,3577.4,3576.9,2.79568]
[1732840686616,0.26089779,3577.3,3576.9,2.79568]
[1732840686785,0.55,3577.6,3576.9,3.431139]
[1732840686979,0.26091125,3577.5,3577.1,2.79551]
[1732840687173,3.3452,3577.6,3576.9,0.635469]
[1732840687405,2.79535,3577.4,3576.8,0.7631]
[1732840687710,2.79549,3577.2,3576.8,0.7631]
[1732840688398,0.55,3577.6,3576.8,0.7631]
[1732840688606,0.26083336,3577.5,3577.0,2.79557]
[1732840688778,0.41733337,3577.7,3577.6,2.79516]
[1732840688984,3.54953,3578.3,3577.7,2.79508]
[1732840689175,2.79472,3578.2,3577.6,2.79514]
[1732840689375,3.54953,3578.3,3577.7,0.05463019]
[1732840689610,3.54953,3578.3,3577.7,2.84966019]
[1732840689815,2.7947,3578.2,3577.7,0.05463019]
[1732840690112,2.79455,3578.4,3577.8,2.79499]
[1732840690337,2.79463,3578.3,3577.8,2.84962019]
[1732840691215,2.79463,3578.3,3577.8,0.05463019]
[1732840691216,0.55,3578.1,3577.8,0.05463019]
[1732840691427,2.7947,3578.2,3577.6,2.79516]
[1732840691737,0.55,3578.1,3577.7,0.69082719]
[1732840692243,0.55,3578.3,3577.7,3.48588719]
[1732840692538,0.55,3578.3,3577.8,2.79501]
[1732840692846,0.55,3578.4,3577.7,3.431267]
[1732840693138,0.55,3578.2,3577.9,0.05463019]
[1732840693340,0.55,3578.2,3577.8,2.79494]
[1732840693553,3.34455,3578.4,3578.0,0.05463019]
[1732840693717,3.34455,3578.4,3577.8,2.79494]
[1732840694046,3.34455,3578.4,3577.7,2.79507]
[1732840694214,2.79476,3578.2,3577.9,0.05463019]
[1732840694554,3.34492,3578.0,3577.4,3.5668]
[1732840694728,0.55,3577.8,3577.4,1.46507423]
[1732840695227,0.55,3578.0,3577.4,4.26038423]
[1732840695606,0.55,3578.0,3577.5,2.79524]
[1732840695840,0.55,3578.0,3577.6,2.79516]
[1732840696049,0.55,3578.0,3577.5,0.02794886]
[1732840696345,0.55,3578.0,3577.6,0.70836631]
[1732840697134,2.79463,3578.3,3577.6,3.50352631]
[1732840697340,0.55,3578.2,3577.6,3.50352631]
[1732840697650,0.55,3578.4,3577.9,2.79488]
[1732840697860,0.55,3578.4,3578.0,0.8173]
[1732840698236,3.34455,3578.4,3578.0,0.8173]
[1732840698570,0.55,3578.2,3577.7,3.55844]
[1732840698868,0.55,3578.2,3577.7,4.193798]
[1732840699068,0.55,3578.2,3577.7,1.398758]
[1732840699268,3.34471,3578.2,3577.7,1.398758]
[1732840701229,0.55,3578.4,3577.8,2.79495]
[1732840701552,2.79467,3578.3,3577.7,1.398758]
[1732840701954,2.79467,3578.3,3577.7,4.193818]
[1732840702147,0.55,3578.4,3577.8,2.79499]
[1732840702365,0.55,3578.4,3577.8,3.4938858]
[1732840703269,0.55,3578.4,3578.0,2.79484]
[1732840703865,0.55,3578.4,3578.1,2.84935019]
[1732840704051,2.59804549,3578.5,3578.1,0.05463019]
[1732840704258,2.59804549,3578.5,3578.2,2.79469]
[1732840704850,2.59804549,3578.5,3578.3,0.05463019]
[1732840705167,5.39251549,3578.5,3578.3,0.05463019]
[1732840705570,3.34455,3578.4,3577.8,2.79498]
[1732840705733,0.55,3578.4,3577.9,0.69067696]
[1732840705933,2.79507,3577.8,3577.1,2.79548]
[1732840706272,3.34493,3577.9,3577.3,2.7954]
[1732840706632,2.79502,3577.8,3577.3,2.7954]
[1732840707235,0.55,3577.9,3577.4,2.79532]
[1732840707435,3.34494,3577.9,3577.5,1.074532]
[1732840707631,2.79502,3577.8,3577.5,0.795]
[1732840707835,0.55,3577.5,3576.4,2.79608]
[1732840708064,2.79565,3577.0,3576.4,2.79609]
[1732840708265,2.79573,3576.9,3576.4,2.79609]
[1732840708469,2.79565,3577.0,3576.5,0.61432783]
[1732840709177,2.79556,3577.1,3576.5,3.41033783]
[1732840709655,2.59804549,3577.2,3576.5,3.41033783]
[1732840709851,2.79562,3577.1,3576.5,3.41033783]
[1732840710080,2.79572,3576.9,3576.5,0.61432783]
[1732840710387,2.79572,3576.9,3576.6,0.47799961]
[1732840710588,0.55,3576.9,3576.6,0.47799961]
[1732840710896,0.55,3576.9,3576.6,3.27393961]
[1732840711097,0.55,3577.0,3576.6,3.27393961]
[1732840711255,3.3455,3577.2,3576.6,3.27393961]
[1732840711454,2.79565,3577.0,3576.7,0.68885596]
[1732840711689,2.79564,3577.0,3576.7,0.68885596]
[1732840711897,0.55,3576.9,3576.7,0.68885596]
[1732840712192,3.40594549,3577.4,3576.8,2.79577]
[1732840712193,5.39339549,3577.4,3576.8,2.79577]
[1732840712352,0.55,3577.3,3576.9,0.8281]
[1732840713993,2.59804549,3577.8,3576.9,0.8281]
[1732840714204,5.39306549,3577.8,3577.2,2.7954]
[1732840714499,5.39306549,3577.8,3577.2,3.437305]
[1732840714679,2.59804549,3577.8,3577.3,2.79533]
[1732840714877,2.59804549,3577.8,3577.3,2.82328082]
[1732840715087,2.59804549,3577.8,3577.3,2.79734581]
[1732840715255,2.59804549,3577.8,3577.3,2.76939499]
[1732840715889,2.59804549,3577.8,3577.3,3.39007899]
[1732840717196,5.39305549,3577.8,3577.3,0.620684]
[1732840718098,2.79509,3577.7,3577.2,2.79543]
[1732840718894,0.4345223,3578.6,3577.0,3.36853709]
[1732840718895,0.55,3578.2,3577.5,0.7669]
[1732840719095,0.26076535,3578.1,3577.7,2.79503]
[1732840719269,2.79471,3578.2,3577.6,2.84784222]
[1732840719607,3.05562813,3578.1,3577.7,0.64100422]
[1732840719815,2.59804549,3578.2,3577.7,0.05271222]
[1732840719967,0.26078982,3578.1,3577.9,2.79493]
[1732840720167,0.55,3578.4,3578.0,2.79485]
[1732840720472,0.2607932,3578.3,3578.0,2.84756222]
[1732840720685,0.55,3578.4,3578.0,0.05271222]
[1732840720885,3.34456,3578.4,3578.0,0.05271222]
[1732840721189,0.26079669,3578.3,3577.9,2.79493]
[1732840721359,3.34456,3578.4,3577.9,2.79493]
[1732840721360,3.34456,3578.4,3578.1,0.05271222]
[1732840721685,0.81079871,3578.3,3578.2,0.05271222]
[1732840722210,0.81079871,3578.3,3577.5,3.56211]
[1732840722411,0.55,3578.3,3578.2,0.05271222]
[1732840722700,0.8107855,3578.3,3578.2,0.05271222]
[1732840722899,0.8107855,3578.3,3577.6,0.635746]
[1732840723116,0.55,3578.3,3578.2,0.05271222]
[1732840723265,0.55,3578.3,3577.8,2.79494]
[1732840723466,0.55,3578.3,3578.2,0.05271222]
[1732840723782,0.81078531,3578.3,3577.8,3.4942116]
[1732840724016,0.55,3578.3,3577.8,3.4942116]
[1732840724204,0.55,3578.3,3577.9,0.05271222]
[1732840724401,0.55,3578.3,3577.9,2.84764222]
[1732840725089,3.34447,3578.5,3577.9,2.84764222]
[1732840725293,0.55,3578.3,3577.9,2.84764222]
[1732840725486,3.43074549,3578.6,3577.9,2.84764222]
[1732840725487,6.22514549,3578.6,3578.1,2.79477]
[1732840725692,0.81076557,3578.5,3577.9,3.4818406]
[1732840725984,3.34446,3578.5,3578.0,2.84755222]
[1732840726209,3.34446,3578.5,3578.0,3.62815222]
[1732840726586,0.55,3578.5,3578.0,3.62815222]
[1732840726788,0.26073506,3578.4,3578.0,3.62815222]
[1732840727027,0.55,3578.5,3578.0,3.62815222]
[1732840727232,0.26073493,3578.4,3578.0,3.62815222]
[1732840727528,0.55,3578.5,3578.0,3.62815222]
[1732840727687,0.26071808,3578.4,3578.2,2.79467]
[1732840727892,0.1526499,3578.8,3578.2,3.50037206]
[1732840728231,0.26071919,3578.7,3578.4,2.79454]
[1732840728409,0.26071919,3578.6,3578.5,2.79446]
[1732840728729,0.1526499,3578.8,3578.5,2.84715222]
[1732840729492,0.1526499,3578.8,3578.7,2.79431]
[1732840730129,0.1526499,3578.8,3578.7,2.84702222]
[1732840730289,0.1526499,3578.8,3578.7,3.48576722]
[1732840732147,0.1526499,3578.8,3578.7,4.26546722]
[1732840738024,0.1526499,3578.8,3578.7,4.2934049]
[1732840738429,0.1526499,3578.8,3578.7,4.26546722]
[1732840738632,0.1526499,3578.8,3578.7,7.26546722]
[1732840740142,0.1526499,3578.8,3578.7,10.21046722]
[1732840740357,0.1526499,3578.8,3578.7,0.05271222]
[1732840740561,4.2859799,3578.8,3578.7,0.05271222]
[1732840740856,4.2859799,3578.8,3578.0,2.79485]
[1732840740857,0.55,3578.7,3578.0,2.79485]
[1732840741060,0.9417499,3578.8,3578.2,3.58437]
[1732840741355,0.1526499,3578.8,3578.5,2.79445]
[1732840741561,0.1526499,3578.8,3578.3,0.043346]
[1732840741715,2.79432,3578.7,3578.2,0.7897]
[1732840741919,0.1526499,3578.8,3578.4,0.043346]
[1732840742225,0.1526499,3578.8,3578.5,0.043346]
[1732840742422,0.1526499,3578.8,3578.3,2.79462]
[1732840742647,0.1526499,3578.8,3578.4,0.043346]
[1732840743052,2.9469199,3578.8,3578.4,0.043346]
[1732840743232,2.9469199,3578.8,3578.2,0.7897]
[1732840743415,2.79432,3578.7,3578.3,0.043346]
[1732840743970,0.7619,3578.5,3578.3,0.043346]
[1732840744118,2.79454,3578.4,3578.3,0.043346]
[1732840744474,2.79459,3578.4,3577.8,2.79501]
[1732840744764,2.79462,3578.3,3577.7,4.17141079]
[1732840745056,2.79472,3578.2,3577.6,2.79516]
[1732840745284,2.79456,3578.4,3577.7,0.043346]
[1732840745554,2.79487,3578.0,3577.7,0.043346]
[1732840745757,2.79475,3578.2,3577.7,0.043346]
[1732840745945,2.79475,3578.2,3577.6,3.429847]
[1732840746147,0.7619,3578.5,3577.8,0.04314145]
[1732840746331,3.55636,3578.5,3577.9,2.79493]
[1732840746549,2.79455,3578.4,3577.9,0.04314145]
[1732840746756,2.79455,3578.4,3577.9,2.83806145]
[1732840746935,2.79455,3578.4,3577.9,2.79492]
[1732840747143,2.79455,3578.4,3578.0,0.04314145]
[1732840747920,2.79477,3578.1,3578.0,0.04314145]
[1732840748125,2.79468,3578.3,3578.0,0.04314145]
[1732840748421,6.15442549,3578.5,3578.1,0.04314145]
[1732840748722,6.15442549,3578.5,3577.9,2.79493]
[1732840748927,6.15442549,3578.5,3578.2,0.04314145]
[1732840749141,6.15442549,3578.5,3577.9,3.353923]
[1732840749424,6.15442549,3578.5,3578.0,2.79485]
[1732840749625,3.55638,3578.5,3578.1,0.04314145]
[1732840750030,3.55638,3578.5,3577.9,3.353903]
[1732840750227,3.55638,3578.5,3578.0,0.04314145]
[1732840751470,0.7619,3578.5,3578.0,2.83798145]
[1732840751672,2.79434,3578.7,3578.1,1.35378914]
[1732840751911,0.9289499,3578.8,3578.3,2.79462]
[1732840752107,0.1526499,3578.8,3578.3,2.79462]
[1732840752272,0.1526499,3578.8,3578.5,2.79446]
[1732840752610,0.1526499,3578.8,3578.6,0.04137572]
[1732840753173,0.1526499,3578.8,3578.3,2.79462]
[1732840753370,0.1526499,3578.8,3578.7,0.04137572]
[1732840753586,0.1526499,3578.8,3578.3,2.79462]
[1732840753805,0.1526499,3578.8,3578.7,0.04137572]
[1732840754005,0.1526499,3578.8,3578.3,3.48887591]
[1732840754218,0.1526499,3578.8,3578.7,0.04137572]
[1732840754415,0.1526499,3578.8,3578.3,3.48887591]
[1732840754617,0.1526499,3578.8,3578.7,0.04137572]
[1732840754801,0.1526499,3578.8,3578.3,3.48887591]
[1732840755121,0.1526499,3578.8,3578.4,3.55826051]
[1732840755332,0.1526499,3578.8,3578.4,3.59963623]
[1732840755623,0.1526499,3578.8,3578.5,2.79442]
[1732840755820,0.1526499,3578.8,3578.4,0.80511623]
[1732840755988,0.1526499,3578.8,3578.4,3.55827051]
[1732840756188,0.1526499,3578.8,3578.5,0.04137572]
[1732840756592,0.1526499,3578.8,3578.4,3.55827051]
[1732840756791,0.1526499,3578.8,3578.5,0.69256011]
[1732840757194,0.1526499,3578.8,3578.6,0.04137572]
[1732840757391,2.79379,3579.4,3578.6,0.04137572]
[1732840757392,0.43472966,3579.9,3578.7,0.7862]
[1732840757622,0.26101402,3579.8,3579.7,2.79353]
[1732840757897,5.39149549,3579.8,3579.7,0.04137572]
[1732840758197,7.36190721,3579.8,3579.7,0.04137572]
[1732840758505,0.7935,3579.6,3578.6,2.79438]
[1732840758720,2.59804549,3579.3,3578.4,0.7862]
[1732840759039,2.59804549,3579.3,3578.8,2.79422]
[1732840759242,0.7935,3579.6,3578.4,0.7862]
[1732840759539,0.7935,3579.6,3579.1,2.79398]
[1732840759830,0.7935,3579.6,3579.0,3.61226]
[1732840759831,0.7935,3579.6,3579.2,3.434514]
[1732840760196,0.7935,3579.6,3579.3,0.04137572]
[1732840760649,0.7935,3579.6,3579.2,3.434514]
[1732840760821,0.7935,3579.6,3579.4,0.04137572]
[1732840761006,0.7935,3579.6,3579.4,2.79376]
[1732840761209,1.3439,3580.0,3579.5,0.04137572]
[1732840761624,1.3439,3580.0,3579.5,2.83499572]
[1732840761829,0.7939,3580.0,3579.5,2.83499572]
[1732840762244,0.7939,3580.0,3579.7,2.79351]
[1732840762771,0.7939,3580.0,3579.8,0.04137572]
[1732840763062,0.7939,3580.0,3579.7,2.79351]
[1732840763417,0.7939,3580.0,3579.8,0.04137572]
[1732840763914,0.7939,3580.0,3579.9,0.04137572]
[1732840764328,0.7939,3580.0,3579.6,2.7936]
[1732840764533,0.7939,3580.0,3579.9,0.04137572]
[1732840764760,0.7939,3580.0,3579.6,2.7936]
[1732840764963,0.7939,3580.0,3579.9,0.04137572]
[1732840765118,0.7939,3580.0,3579.6,2.7936]
[1732840765320,0.7939,3580.0,3579.9,0.04137572]
[1732840765671,0.7939,3580.0,3579.6,2.7936]
[1732840765837,0.7939,3580.0,3579.5,2.79362]
[1732840766158,0.7939,3580.0,3579.7,2.79351]
[1732840766722,0.7939,3580.0,3579.8,0.04137572]
[1732840767133,0.7939,3580.0,3579.7,2.79351]
[1732840767332,0.55,3580.2,3579.9,0.04137572]
[1732840767548,0.55,3580.2,3579.8,2.79344]
[1732840767965,0.55,3580.2,3579.9,0.04137572]
[1732840768162,2.59804549,3580.3,3579.9,0.04137572]
[1732840769632,2.59804549,3580.3,3579.9,2.83471572]
[1732840770244,2.59804549,3580.3,3579.9,0.04137572]
[1732840770446,0.55,3580.0,3579.2,2.79389]
[1732840770659,0.8033,3579.6,3579.3,0.04137572]
[1732840770971,0.82419881,3579.6,3579.0,2.79401]
[1732840771173,0.8033,3579.6,3579.4,0.04137572]
[1732840771472,2.79377,3579.4,3578.8,2.7942]
[1732840771632,2.79393,3579.2,3578.8,0.558858]
[1732840772348,3.34378,3579.4,3578.8,3.353078]
[1732840772545,2.59804549,3579.5,3579.0,2.79402]
[1732840773431,2.59804549,3579.5,3578.8,0.558858]
[1732840773635,2.79384,3579.3,3578.7,2.79428]
[1732840773860,2.59804549,3579.5,3578.8,2.79423]
[1732840774030,2.59804549,3579.5,3579.1,2.79392]
[1732840774246,0.8033,3579.6,3579.2,2.79391]
[1732840775399,5.39141549,3579.9,3579.3,2.79379]
[1732840775548,3.38994549,3579.9,3579.5,2.79366]
[1732840775875,0.7919,3580.2,3579.6,2.79354]
[1732840776050,1.05234916,3580.2,3579.6,2.79354]
[1732840776671,1.05234916,3580.2,3579.7,2.79351]
[1732840776868,3.84549916,3580.2,3579.5,2.79361]
[1732840777089,3.58505,3580.2,3579.5,2.79361]
[1732840777479,3.58505,3580.2,3579.6,2.79358]
[1732840778904,0.28154019,3580.1,3579.7,0.04137572]
[1732840779198,3.05385138,3580.1,3579.7,0.04137572]
[1732840779394,2.79321,3580.1,3579.6,2.79358]
[1732840779593,2.79321,3580.1,3579.8,0.04137572]
[1732840779770,2.79321,3580.1,3579.6,2.79358]
[1732840780102,2.81410881,3580.1,3579.6,2.79358]
[1732840780308,2.79321,3580.1,3579.7,0.04137572]
[1732840780597,0.02089881,3580.0,3579.7,0.04137572]
[1732840780797,0.28167275,3580.0,3579.5,2.79368]
[1732840780972,0.02089881,3580.0,3579.8,0.04137572]
[1732840781172,0.02089881,3580.0,3579.5,2.79368]
[1732840781505,0.02089881,3580.0,3579.5,3.4165]
[1732840781800,2.79321,3580.1,3579.6,0.04137572]
[1732840781961,0.26087372,3580.0,3579.6,0.04137572]
[1732840782161,2.79321,3580.1,3579.6,0.04137572]
[1732840782391,0.26088801,3580.0,3579.6,0.04137572]
[1732840782662,2.79321,3580.1,3579.6,0.04137572]
[1732840782862,0.2609185,3580.0,3579.6,0.04137572]
[1732840783091,2.79321,3580.1,3579.6,0.04137572]
[1732840783293,0.26092182,3580.0,3579.6,0.04137572]